[Event "44th Chess Olympiad Women 2022"]
[Site "Chennai"]
[Date "2022.08.06"]
[Round "8.24"]
[White "Ortiz Verdezoto, Anahi"]
[Black "Baginskaite, Kamile"]
[Result "1-0"]
[WhiteElo "2046"]
[BlackElo "2134"]
[Annotator "NA RC"]
[PlyCount "127"]
[EventDate "2022.??.??"]
[TimeControl "60"]

1. d4 {[%emt 0:00:15]} Nf6 {[%emt 0:00:09]} 2. c4 {[%emt 0:00:11]} e6 {[%emt 0:
00:00]} 3. Nf3 {[%emt 0:00:07]} d5 {[%emt 0:01:57]} 4. Nc3 {[%emt 0:00:33]} Bb4
{[%emt 0:00:07]} 5. cxd5 {[%emt 0:00:08]} exd5 {[%emt 0:01:16]} 6. Bg5 {
[%emt 0:00:31]} Nbd7 {[%emt 0:02:02]} 7. Qc2 {[%emt 0:03:06]} h6 {[%emt 0:00:
00]} 8. Bd2 {[%emt 0:07:45]} c6 {[%emt 0:01:12]} 9. e3 {[%emt 0:02:11]} Bd6 {
[%emt 0:01:53]} 10. Bd3 {[%emt 0:03:54]} O-O {[%emt 0:07:05]} 11. O-O {[%emt 0:
00:00]} Re8 {[%emt 0:00:37]} 12. Rab1 {[%emt 0:11:35]} a5 {[%emt 0:04:47]} 13.
a3 {[%emt 0:04:21]} b5 {[%emt 0:12:52]} 14. b4 {[%emt 0:00:29]} axb4 {[%emt 0:
00:00]} 15. axb4 {[%emt 0:00:03]} Nb6 {[%emt 0:00:06]} 16. e4 {[%emt 0:02:00]}
dxe4 {[%emt 0:01:08]} 17. Nxe4 {[%emt 0:01:19]} Nxe4 {[%emt 0:01:36]} 18. Bxe4
{[%emt 0:00:09]} Be6 {[%emt 0:03:01]} 19. Ra1 {[%emt 0:15:16]} Bd5 {[%emt 0:00:
00]} 20. Bxd5 {[%emt 0:03:41]} cxd5 {[%emt 0:00:05]} 21. Qc6 {[%emt 0:02:59]}
Nc4 {[%emt 0:01:32]} 22. Rxa8 {[%emt 0:09:30]} Qxa8 {[%emt 0:00:02]} 23. Qxb5 {
[%emt 0:00:22]} Rb8 {[%emt 0:00:20]} 24. Qd7 {[%emt 0:00:21]} Nxd2 {[%emt 0:00:
00]} 25. Nxd2 {[%emt 0:00:03]} Bxb4 {[%emt 0:00:08]} 26. Nf3 {[%emt 0:00:25]}
Rd8 {[%emt 0:02:39]} 27. Qf5 {[%emt 0:02:09]} Qc8 {[%emt 0:00:46]} 28. Qb1 {
[%emt 0:13:01]} Bd6 {[%emt 0:01:32]} 29. g3 {[%emt 0:01:03]} Qc3 {[%emt 0:00:
00]} 30. Kg2 {[%emt 0:00:57]} g6 {[%emt 0:00:58]} 31. Rc1 {[%emt 0:04:11]} Qb4
{[%emt 0:00:04]} 32. Qd3 {[%emt 0:00:04]} Kg7 {[%emt 0:00:42]} 33. h4 {[%emt 0:
00:00]} Rb8 {[%emt 0:01:25]} 34. h5 {[%emt 0:03:33]} Qb5 {[%emt 0:00:22]} 35.
Qxb5 {[%emt 0:02:19]} Rxb5 {[%emt 0:00:01]} 36. hxg6 {[%emt 0:00:07]} fxg6 {
[%emt 0:00:43]} 37. Rc6 {[%emt 0:00:06]} Be7 {[%emt 0:08:10]} 38. Ne5 {[%emt 0:
00:00]} g5 {[%emt 0:00:30]} 39. Rg6+ {[%emt 0:03:24]} Kh7 {[%emt 0:00:30]} 40.
Re6 {[%emt 0:00:03]} Ba3 {[%emt 0:03:38]} 41. Ng4 {[%emt 0:31:10]} Bf8 {
[%emt 0:07:11]} 42. Ne3 {[%emt 0:00:00]} Rb4 {[%emt 0:02:13]} 43. Nf5 {[%emt 0:
00:00]} g4 {[%emt 0:00:06]} 44. Re8 {[%emt 0:00:00]} Kg8 {[%emt 0:02:14]} 45.
Nxh6+ {[%emt 0:00:00]} Kg7 {[%emt 0:00:06]} 46. Nf5+ {[%emt 0:00:00]} Kf7 {
[%emt 0:00:43]} 47. Re5 {[%emt 0:00:00]} Bg7 {[%emt 0:00:06]} 48. Nxg7 {
[%emt 0:00:00]} Kxg7 {[%emt 0:00:07]} 49. Rxd5 {[%emt 0:00:00]} Kf6 {[%emt 0:
00:00]} 50. Kf1 {[%emt 0:00:00]} Rb1+ {[%emt 0:03:19]} 51. Ke2 {[%emt 0:00:00]}
Rb2+ {[%emt 0:00:06]} 52. Ke3 {[%emt 0:00:00]} Rb3+ {[%emt 0:00:05]} 53. Kf4 {
[%emt 0:00:00]} Rf3+ {[%emt 0:00:06]} 54. Kxg4 {[%emt 0:00:00]} Rxf2 {[%emt 0:
00:00]} 55. Re5 {[%emt 0:00:00]} Rd2 {[%emt 0:01:55]} 56. Re4 {[%emt 0:00:00]}
Rd1 {[%emt 0:06:59]} 57. Kf4 {[%emt 0:00:00]} Rf1+ {[%emt 0:00:13]} 58. Ke3 {
[%emt 0:00:00]} Re1+ {[%emt 0:00:06]} 59. Kd3 {[%emt 0:00:20]} Rd1+ {[%emt 0:
00:00]} 60. Kc4 {[%emt 0:00:36]} Kf5 {[%emt 0:00:47]} 61. Re3 {[%emt 0:00:17]}
Rc1+ {[%emt 0:02:36]} 62. Kb5 {[%emt 0:00:16]} Rb1+ {[%emt 0:02:43]} 63. Kc6 {
[%emt 0:00:12]} Rc1+ {[%emt 0:00:05]} 64. Kd6 {[%emt 0:00:08]} 1-0

[Event "44th Chess Olympiad Women 2022"]
[Site "Chennai"]
[Date "2022.08.06"]
[Round "8.24"]
[White "Sibajeva, Marija"]
[Black "Penafiel Mendoza, Josselyne"]
[Result "1-0"]
[WhiteElo "2032"]
[BlackElo "1804"]
[Annotator "NA RC"]
[PlyCount "99"]
[EventDate "2022.??.??"]
[TimeControl "60"]

1. e4 {[%emt 0:00:01]} c5 {[%emt 0:00:13]} 2. Nf3 {[%emt 0:00:04]} d6 {[%emt 0:
00:00]} 3. d4 {[%emt 0:00:05]} cxd4 {[%emt 0:00:13]} 4. Qxd4 {[%emt 0:00:04]}
a6 {[%emt 0:01:11]} 5. c4 {[%emt 0:00:06]} Nc6 {[%emt 0:01:18]} 6. Qd3 {
[%emt 0:00:55]} Nf6 {[%emt 0:03:04]} 7. a3 {[%emt 0:01:34]} Qa5+ {[%emt 0:00:
00]} 8. Bd2 {[%emt 0:01:01]} Qb6 {[%emt 0:00:28]} 9. Bc3 {[%emt 0:03:02]} h6 {
[%emt 0:07:48]} 10. Be2 {[%emt 0:03:52]} Be6 {[%emt 0:05:08]} 11. Nbd2 {
[%emt 0:07:32]} Rc8 {[%emt 0:02:13]} 12. b4 {[%emt 0:02:19]} Ng4 {[%emt 0:00:
00]} 13. O-O {[%emt 0:02:31]} Nce5 {[%emt 0:01:04]} 14. Nxe5 {[%emt 0:00:30]}
Nxe5 {[%emt 0:00:34]} 15. Bxe5 {[%emt 0:00:22]} dxe5 {[%emt 0:00:07]} 16. c5 {
[%emt 0:02:05]} Qc7 {[%emt 0:02:11]} 17. Qg3 {[%emt 0:00:25]} g6 {[%emt 0:00:
00]} 18. Bc4 {[%emt 0:00:32]} Bxc4 {[%emt 0:00:55]} 19. Nxc4 {[%emt 0:00:04]}
Bg7 {[%emt 0:00:21]} 20. Rad1 {[%emt 0:00:52]} O-O {[%emt 0:03:07]} 21. Nb6 {
[%emt 0:00:15]} e6 {[%emt 0:13:06]} 22. Nxc8 {[%emt 0:00:33]} Rxc8 {[%emt 0:00:
00]} 23. Qd3 {[%emt 0:01:32]} a5 {[%emt 0:05:18]} 24. Qd6 {[%emt 0:00:14]} Bf8
{[%emt 0:01:02]} 25. Qxc7 {[%emt 0:00:05]} Rxc7 {[%emt 0:00:04]} 26. Rd8 {
[%emt 0:02:04]} Kg7 {[%emt 0:01:31]} 27. Rfd1 {[%emt 0:01:00]} axb4 {[%emt 0:
00:00]} 28. axb4 {[%emt 0:00:05]} b6 {[%emt 0:02:01]} 29. cxb6 {[%emt 0:00:23]}
Rb7 {[%emt 0:00:02]} 30. b5 {[%emt 0:00:10]} Rxb6 {[%emt 0:00:24]} 31. Rb1 {
[%emt 0:00:01]} Bc5 {[%emt 0:03:00]} 32. Rc8 {[%emt 0:00:07]} Bd4 {[%emt 0:00:
00]} 33. Rc6 {[%emt 0:00:27]} Rb7 {[%emt 0:00:19]} 34. b6 {[%emt 0:00:13]} Kf6
{[%emt 0:00:33]} 35. Kf1 {[%emt 0:00:04]} g5 {[%emt 0:08:35]} 36. Ke2 {[%emt 0:
00:00]} g4 {[%emt 0:06:24]} 37. Kd3 {[%emt 0:02:10]} Ke7 {[%emt 0:04:28]} 38.
Kc4 {[%emt 0:02:10]} Kd7 {[%emt 0:00:34]} 39. Kb5 {[%emt 0:00:16]} Rb8 {
[%emt 0:01:27]} 40. Rbc1 {[%emt 0:01:00]} Kd8 {[%emt 0:02:00]} 41. Ka6 {
[%emt 0:30:52]} Ra8+ {[%emt 0:31:16]} 42. Kb7 {[%emt 0:00:30]} Ra2 {[%emt 0:00:
00]} 43. Rc8+ {[%emt 0:00:03]} Ke7 {[%emt 0:00:25]} 44. Kc7 {[%emt 0:01:15]}
Ra6 {[%emt 0:00:00]} 45. Rb8 {[%emt 0:00:00]} Bxf2 {[%emt 0:00:00]} 46. b7 {
[%emt 0:00:00]} Bb6+ {[%emt 0:00:00]} 47. Kc8 {[%emt 0:00:00]} Be3 {[%emt 0:00:
00]} 48. Rc7+ {[%emt 0:00:00]} Kf6 {[%emt 0:00:00]} 49. Ra8 {[%emt 0:00:00]}
Ba7 {[%emt 0:00:00]} 50. Rxa7 {[%emt 0:00:00]} 1-0

[Event "44th Chess Olympiad Women 2022"]
[Site "Chennai"]
[Date "2022.08.06"]
[Round "8.25"]
[White "Bacic, Kristina"]
[Black "Wafa, Shahenda"]
[Result "0-1"]
[WhiteElo "1866"]
[BlackElo "2115"]
[Annotator "NA RC"]
[PlyCount "84"]
[EventDate "2022.??.??"]
[TimeControl "60"]

1. d4 {[%emt 0:00:10]} Nf6 {[%emt 0:00:08]} 2. Nf3 {[%emt 0:00:11]} g6 {
[%emt 0:00:14]} 3. c4 {[%emt 0:00:19]} Bg7 {[%emt 0:00:08]} 4. Nc3 {[%emt 0:00:
00]} O-O {[%emt 0:00:59]} 5. e4 {[%emt 0:00:33]} d6 {[%emt 0:00:07]} 6. Be2 {
[%emt 0:00:34]} e5 {[%emt 0:00:54]} 7. d5 {[%emt 0:06:28]} a5 {[%emt 0:01:30]}
8. O-O {[%emt 0:02:27]} Na6 {[%emt 0:01:06]} 9. h3 {[%emt 0:02:59]} Nc5 {
[%emt 0:03:49]} 10. Qc2 {[%emt 0:01:19]} Ne8 {[%emt 0:09:36]} 11. Be3 {[%emt 0:
00:00]} b6 {[%emt 0:05:27]} 12. a3 {[%emt 0:05:21]} f5 {[%emt 0:04:23]} 13. Nd2
{[%emt 0:15:49]} f4 {[%emt 0:03:47]} 14. Bxc5 {[%emt 0:00:10]} bxc5 {[%emt 0:
00:00]} 15. b4 {[%emt 0:02:01]} axb4 {[%emt 0:03:55]} 16. axb4 {[%emt 0:00:05]}
Rxa1 {[%emt 0:01:53]} 17. Rxa1 {[%emt 0:00:04]} cxb4 {[%emt 0:00:51]} 18. Nb5 {
[%emt 0:03:08]} Bd7 {[%emt 0:15:33]} 19. Qb3 {[%emt 0:08:59]} c5 {[%emt 0:00:
00]} 20. dxc6 {[%emt 0:00:16]} Bxc6 {[%emt 0:00:07]} 21. Qxb4 {[%emt 0:01:46]}
Qb6 {[%emt 0:07:49]} 22. Qa3 {[%emt 0:04:56]} Bb7 {[%emt 0:09:25]} 23. Qa7 {
[%emt 0:13:28]} Qc6 {[%emt 0:03:03]} 24. Nb3 {[%emt 0:01:20]} Bc8 {[%emt 0:00:
00]} 25. f3 {[%emt 0:06:03]} Rf7 {[%emt 0:00:24]} 26. Qf2 {[%emt 0:02:11]} Be6
{[%emt 0:02:24]} 27. Na5 {[%emt 0:01:56]} Qc8 {[%emt 0:01:35]} 28. Qb6 {
[%emt 0:00:50]} Bf8 {[%emt 0:00:50]} 29. Kh2 {[%emt 0:03:07]} Be7 {[%emt 0:00:
00]} 30. Nc6 {[%emt 0:01:33]} Bh4 {[%emt 0:00:33]} 31. Nba7 {[%emt 0:03:20]}
Qb7 {[%emt 0:03:04]} 32. c5 {[%emt 0:01:21]} dxc5 {[%emt 0:00:57]} 33. Qxc5 {
[%emt 0:03:17]} Bg3+ {[%emt 0:02:19]} 34. Kh1 {[%emt 0:01:27]} Bxh3 {[%emt 0:
00:00]} 35. Qxe5 {[%emt 0:00:31]} Qd7 {[%emt 0:01:21]} 36. Rd1 {[%emt 0:01:14]}
Qe6 {[%emt 0:00:14]} 37. Qb2 {[%emt 0:03:00]} g5 {[%emt 0:01:16]} 38. Qb8 {
[%emt 0:01:07]} Qh6 {[%emt 0:01:12]} 39. Qxe8+ {[%emt 0:00:21]} Rf8 {[%emt 0:
00:00]} 40. Ne7+ {[%emt 0:00:39]} Kg7 {[%emt 0:00:47]} 41. Kg1 {[%emt 0:30:38]}
Rxe8 {[%emt 0:30:19]} 42. gxh3 {[%emt 0:00:00]} Rxe7 {[%emt 0:00:00]} 0-1

[Event "44th Chess Olympiad Women 2022"]
[Site "Chennai"]
[Date "2022.08.06"]
[Round "8.25"]
[White "Elansary, Eman"]
[Black "Popovic, Mateja"]
[Result "0-1"]
[WhiteElo "1936"]
[BlackElo "1634"]
[Annotator "NA RC"]
[PlyCount "108"]
[EventDate "2022.??.??"]
[TimeControl "60"]

1. d4 {[%emt 0:00:05]} d5 {[%emt 0:00:17]} 2. Nf3 {[%emt 0:00:08]} Nf6 {
[%emt 0:00:34]} 3. e3 {[%emt 0:00:15]} e6 {[%emt 0:00:51]} 4. Bd3 {[%emt 0:00:
00]} Nbd7 {[%emt 0:01:46]} 5. Nbd2 {[%emt 0:00:27]} c5 {[%emt 0:00:18]} 6. b3 {
[%emt 0:00:32]} Be7 {[%emt 0:01:04]} 7. Bb2 {[%emt 0:00:11]} O-O {[%emt 0:00:
00]} 8. O-O {[%emt 0:00:05]} b6 {[%emt 0:04:41]} 9. Ne5 {[%emt 0:05:25]} Bb7 {
[%emt 0:05:08]} 10. f4 {[%emt 0:00:50]} Ne4 {[%emt 0:06:20]} 11. Nxe4 {[%emt 0:
00:00]} dxe4 {[%emt 0:03:14]} 12. Bb5 {[%emt 0:04:31]} Nxe5 {[%emt 0:02:32]}
13. fxe5 {[%emt 0:03:44]} Bg5 {[%emt 0:01:45]} 14. Qe1 {[%emt 0:00:14]} Rc8 {
[%emt 0:00:50]} 15. Rf2 {[%emt 0:02:01]} f5 {[%emt 0:07:57]} 16. Rd1 {[%emt 0:
00:00]} a6 {[%emt 0:08:53]} 17. Bc4 {[%emt 0:09:19]} Qe7 {[%emt 0:02:09]} 18.
dxc5 {[%emt 0:00:18]} b5 {[%emt 0:00:23]} 19. Bf1 {[%emt 0:02:41]} Qxc5 {
[%emt 0:01:11]} 20. Bd4 {[%emt 0:00:25]} Qc6 {[%emt 0:03:36]} 21. Rfd2 {
[%emt 0:03:14]} f4 {[%emt 0:03:14]} 22. exf4 {[%emt 0:06:36]} Bxf4 {[%emt 0:00:
00]} 23. Re2 {[%emt 0:01:15]} Rf5 {[%emt 0:10:35]} 24. g3 {[%emt 0:05:44]} Bxe5
{[%emt 0:04:04]} 25. Bxe5 {[%emt 0:01:03]} Rxe5 {[%emt 0:00:07]} 26. Bg2 {
[%emt 0:00:07]} Qb6+ {[%emt 0:03:59]} 27. Kh1 {[%emt 0:00:43]} Rec5 {[%emt 0:
00:00]} 28. Qf2 {[%emt 0:02:11]} Qc7 {[%emt 0:03:44]} 29. Kg1 {[%emt 0:04:43]}
Rf8 {[%emt 0:02:05]} 30. Qe3 {[%emt 0:01:59]} Rc3 {[%emt 0:11:33]} 31. Qd2 {
[%emt 0:08:47]} Qc5+ {[%emt 0:00:00]} 32. Kh1 {[%emt 0:01:37]} e3 {[%emt 0:00:
00]} 33. Qd7 {[%emt 0:00:56]} Bxg2+ {[%emt 0:00:00]} 34. Kxg2 {[%emt 0:00:02]}
Qf5 {[%emt 0:00:00]} 35. Rde1 {[%emt 0:05:07]} Rxc2 {[%emt 0:00:00]} 36. Qd1 {
[%emt 0:00:19]} Qf3+ {[%emt 0:00:00]} 37. Kg1 {[%emt 0:00:37]} Rxe2 {[%emt 0:
00:00]} 38. Qxe2 {[%emt 0:00:35]} Qf2+ {[%emt 0:01:11]} 39. Kh1 {[%emt 0:00:38]
} Rf3 {[%emt 0:02:33]} 40. Qxf2 {[%emt 0:01:28]} exf2 {[%emt 0:00:10]} 41. Rf1
{[%emt 0:30:02]} Kf7 {[%emt 0:30:27]} 42. Kg2 {[%emt 0:00:01]} Rf6 {[%emt 0:00:
00]} 43. b4 {[%emt 0:01:52]} Kg6 {[%emt 0:01:00]} 44. Rxf2 {[%emt 0:01:04]}
Rxf2+ {[%emt 0:00:07]} 45. Kxf2 {[%emt 0:00:01]} Kf5 {[%emt 0:02:05]} 46. Kf3 {
[%emt 0:00:38]} h5 {[%emt 0:00:24]} 47. h3 {[%emt 0:00:34]} g6 {[%emt 0:01:34]}
48. Ke3 {[%emt 0:01:07]} Ke5 {[%emt 0:00:19]} 49. Kd3 {[%emt 0:02:30]} g5 {
[%emt 0:01:03]} 50. Ke3 {[%emt 0:00:23]} Kd5 {[%emt 0:00:00]} 51. Kd3 {[%emt 0:
00:00]} e5 {[%emt 0:00:00]} 52. a3 {[%emt 0:00:00]} g4 {[%emt 0:00:00]} 53. h4
{[%emt 0:00:00]} e4+ {[%emt 0:00:00]} 54. Ke3 {[%emt 0:00:00]} Ke5 {[%emt 0:00:
00]} 0-1

[Event "44th Chess Olympiad Women 2022"]
[Site "Chennai"]
[Date "2022.08.06"]
[Round "8.25"]
[White "Milovic, Aleksandra"]
[Black "Mona, Khaled"]
[Result "1-0"]
[WhiteElo "2129"]
[BlackElo "2127"]
[Annotator "NA RC"]
[PlyCount "73"]
[EventDate "2022.??.??"]
[TimeControl "60"]

1. Nc3 {[%emt 0:00:26]} d5 {[%emt 0:00:27]} 2. d4 {[%emt 0:00:10]} Nf6 {
[%emt 0:00:08]} 3. Bf4 {[%emt 0:00:07]} e6 {[%emt 0:00:31]} 4. e3 {[%emt 0:00:
00]} a6 {[%emt 0:00:39]} 5. Bd3 {[%emt 0:04:26]} c5 {[%emt 0:00:49]} 6. Nf3 {
[%emt 0:01:57]} c4 {[%emt 0:01:25]} 7. Be2 {[%emt 0:00:40]} b5 {[%emt 0:00:11]}
8. O-O {[%emt 0:00:42]} Nc6 {[%emt 0:04:46]} 9. b3 {[%emt 0:04:09]} Ba3 {
[%emt 0:05:25]} 10. bxc4 {[%emt 0:07:09]} dxc4 {[%emt 0:00:37]} 11. Ne5 {
[%emt 0:02:56]} Bb7 {[%emt 0:15:11]} 12. Bf3 {[%emt 0:02:08]} Qb6 {[%emt 0:00:
00]} 13. Na4 {[%emt 0:13:58]} Qa5 {[%emt 0:14:12]} 14. Nc5 {[%emt 0:04:10]}
Nxe5 {[%emt 0:01:38]} 15. Bxb7 {[%emt 0:15:17]} Rd8 {[%emt 0:03:07]} 16. Qe2 {
[%emt 0:13:21]} Qb6 {[%emt 0:18:35]} 17. dxe5 {[%emt 0:04:02]} Bxc5 {[%emt 0:
00:00]} 18. exf6 {[%emt 0:00:20]} Qxb7 {[%emt 0:00:06]} 19. fxg7 {[%emt 0:00:
00]} Rg8 {[%emt 0:00:04]} 20. Be5 {[%emt 0:04:02]} Qe4 {[%emt 0:00:46]} 21. Bf6
{[%emt 0:04:12]} Be7 {[%emt 0:00:19]} 22. Bc3 {[%emt 0:00:27]} f6 {[%emt 0:00:
00]} 23. Ba5 {[%emt 0:03:43]} Rd5 {[%emt 0:07:55]} 24. Rad1 {[%emt 0:06:10]}
Rg5 {[%emt 0:00:00]} 25. g3 {[%emt 0:02:07]} R8xg7 {[%emt 0:00:24]} 26. Rd4 {
[%emt 0:00:16]} Qc6 {[%emt 0:01:44]} 27. Rfd1 {[%emt 0:00:46]} h5 {[%emt 0:00:
00]} 28. Qd2 {[%emt 0:01:03]} Rg4 {[%emt 0:00:41]} 29. Bb4 {[%emt 0:02:28]}
Rxd4 {[%emt 0:02:37]} 30. Qxd4 {[%emt 0:00:04]} Bxb4 {[%emt 0:03:07]} 31. Qd8+
{[%emt 0:00:05]} Kf7 {[%emt 0:01:04]} 32. Rd7+ {[%emt 0:00:20]} Kg6 {[%emt 0:
00:00]} 33. Qe8+ {[%emt 0:00:18]} Kf5 {[%emt 0:00:16]} 34. Qxh5+ {[%emt 0:00:
00]} Rg5 {[%emt 0:00:46]} 35. Qh3+ {[%emt 0:00:22]} Rg4 {[%emt 0:02:01]} 36.
Rd4 {[%emt 0:00:26]} Ke5 {[%emt 0:00:50]} 37. Qxg4 {[%emt 0:00:43]} 1-0

[Event "44th Chess Olympiad Women 2022"]
[Site "Chennai"]
[Date "2022.08.06"]
[Round "8.25"]
[White "Moaataz, Ayah"]
[Black "Koljevic, Nikolina"]
[Result "0-1"]
[WhiteElo "2119"]
[BlackElo "2014"]
[Annotator "NA RC"]
[PlyCount "106"]
[EventDate "2022.??.??"]
[TimeControl "60"]

1. c4 {[%emt 0:00:03]} Nf6 {[%emt 0:00:15]} 2. g3 {[%emt 0:00:06]} e6 {[%emt 0:
00:00]} 3. Nf3 {[%emt 0:00:13]} d5 {[%emt 0:00:29]} 4. Bg2 {[%emt 0:00:24]} Be7
{[%emt 0:00:15]} 5. O-O {[%emt 0:00:43]} O-O {[%emt 0:00:25]} 6. d4 {[%emt 0:
00:00]} dxc4 {[%emt 0:00:57]} 7. Ne5 {[%emt 0:01:03]} Nc6 {[%emt 0:01:47]} 8.
Bxc6 {[%emt 0:01:24]} bxc6 {[%emt 0:00:06]} 9. Nxc6 {[%emt 0:00:02]} Qe8 {
[%emt 0:00:12]} 10. Nxe7+ {[%emt 0:00:16]} Qxe7 {[%emt 0:00:16]} 11. b3 {
[%emt 0:00:08]} Qd7 {[%emt 0:12:51]} 12. bxc4 {[%emt 0:07:42]} Rd8 {[%emt 0:00:
00]} 13. Bb2 {[%emt 0:06:10]} c5 {[%emt 0:02:57]} 14. d5 {[%emt 0:21:32]} exd5
{[%emt 0:07:22]} 15. Bxf6 {[%emt 0:00:09]} gxf6 {[%emt 0:00:02]} 16. cxd5 {
[%emt 0:00:06]} Qxd5 {[%emt 0:00:08]} 17. Nc3 {[%emt 0:04:06]} Qxd1 {[%emt 0:
00:00]} 18. Rfxd1 {[%emt 0:00:06]} Bb7 {[%emt 0:00:09]} 19. Kf1 {[%emt 0:07:19]
} Kf8 {[%emt 0:04:09]} 20. Ke1 {[%emt 0:05:06]} Ke7 {[%emt 0:04:09]} 21. Na4 {
[%emt 0:01:14]} Rxd1+ {[%emt 0:03:19]} 22. Rxd1 {[%emt 0:02:28]} Rc8 {[%emt 0:
00:00]} 23. Rd3 {[%emt 0:03:17]} f5 {[%emt 0:07:42]} 24. f3 {[%emt 0:07:51]}
Ke6 {[%emt 0:12:09]} 25. Kd2 {[%emt 0:01:26]} Ba6 {[%emt 0:07:49]} 26. Ra3 {
[%emt 0:00:39]} Bb5 {[%emt 0:02:31]} 27. Nc3 {[%emt 0:01:12]} a6 {[%emt 0:00:
00]} 28. Rb3 {[%emt 0:05:54]} Bd7 {[%emt 0:07:31]} 29. e4 {[%emt 0:07:39]} Ke5
{[%emt 0:05:49]} 30. Ke3 {[%emt 0:04:55]} fxe4 {[%emt 0:02:24]} 31. fxe4 {
[%emt 0:04:33]} Rc6 {[%emt 0:07:11]} 32. Rb7 {[%emt 0:04:14]} Be6 {[%emt 0:00:
00]} 33. a4 {[%emt 0:00:25]} c4 {[%emt 0:02:44]} 34. Rb2 {[%emt 0:02:43]} Rd6 {
[%emt 0:00:39]} 35. Ne2 {[%emt 0:00:30]} Rd3+ {[%emt 0:00:27]} 36. Kf2 {
[%emt 0:00:10]} Kxe4 {[%emt 0:01:26]} 37. Rb6 {[%emt 0:00:10]} Rd2 {[%emt 0:00:
00]} 38. Ke1 {[%emt 0:01:11]} Ke3 {[%emt 0:00:16]} 39. Nc3 {[%emt 0:00:18]}
Rxh2 {[%emt 0:01:02]} 40. Nd1+ {[%emt 0:00:08]} Kd3 {[%emt 0:00:42]} 41. Rd6+ {
[%emt 0:30:46]} Kc2 {[%emt 0:30:40]} 42. Nf2 {[%emt 0:00:00]} a5 {[%emt 0:00:
00]} 43. Ke2 {[%emt 0:00:00]} Rh5 {[%emt 0:00:00]} 44. Ke3 {[%emt 0:00:00]}
Re5+ {[%emt 0:00:00]} 45. Kd4 {[%emt 0:00:00]} Re2 {[%emt 0:00:00]} 46. Ne4 {
[%emt 0:00:00]} Bf5 {[%emt 0:00:00]} 47. Nc5 {[%emt 0:00:00]} Rd2+ {[%emt 0:00:
00]} 48. Ke5 {[%emt 0:00:00]} Rxd6 {[%emt 0:00:00]} 49. Kxd6 {[%emt 0:00:00]}
Kb2 {[%emt 0:00:00]} 50. Ke5 {[%emt 0:00:00]} Bg6 {[%emt 0:00:00]} 51. Nb7 {
[%emt 0:00:00]} c3 {[%emt 0:00:00]} 52. Nxa5 {[%emt 0:00:00]} c2 {[%emt 0:00:
00]} 53. Nc4+ {[%emt 0:00:00]} Ka2 {[%emt 0:00:00]} 0-1

[Event "44th Chess Olympiad Women 2022"]
[Site "Chennai"]
[Date "2022.08.06"]
[Round "8.26"]
[White "Gjergji, Rozana"]
[Black "Norlamo, Sarabella"]
[Result "0-1"]
[WhiteElo "1920"]
[BlackElo "1925"]
[Annotator "NA RC"]
[PlyCount "72"]
[EventDate "2022.??.??"]
[TimeControl "60"]

1. e4 {[%emt 0:00:03]} c5 {[%emt 0:00:05]} 2. Nc3 {[%emt 0:00:10]} Nc6 {
[%emt 0:00:07]} 3. f4 {[%emt 0:00:15]} g6 {[%emt 0:00:16]} 4. Nf3 {[%emt 0:00:
00]} Bg7 {[%emt 0:00:14]} 5. Bc4 {[%emt 0:00:48]} e6 {[%emt 0:10:20]} 6. O-O {
[%emt 0:02:11]} Nge7 {[%emt 0:04:38]} 7. e5 {[%emt 0:02:21]} d5 {[%emt 0:11:57]
} 8. exd6 {[%emt 0:04:04]} Nf5 {[%emt 0:10:07]} 9. Ne4 {[%emt 0:08:14]} Nxd6 {
[%emt 0:02:21]} 10. Nxd6+ {[%emt 0:03:20]} Qxd6 {[%emt 0:00:03]} 11. d3 {
[%emt 0:00:19]} O-O {[%emt 0:03:04]} 12. a3 {[%emt 0:03:43]} b6 {[%emt 0:03:15]
} 13. Rb1 {[%emt 0:09:02]} Bb7 {[%emt 0:01:39]} 14. Qe1 {[%emt 0:02:02]} Nd4 {
[%emt 0:08:18]} 15. Nxd4 {[%emt 0:01:21]} cxd4 {[%emt 0:02:16]} 16. Bd2 {
[%emt 0:03:10]} Rfd8 {[%emt 0:01:28]} 17. Qh4 {[%emt 0:03:15]} Rd7 {[%emt 0:00:
00]} 18. Rbe1 {[%emt 0:02:08]} Qc6 {[%emt 0:07:30]} 19. Re2 {[%emt 0:04:23]} b5
{[%emt 0:01:35]} 20. Bb3 {[%emt 0:00:37]} a5 {[%emt 0:01:57]} 21. Be1 {[%emt 0:
00:00]} Qb6 {[%emt 0:06:21]} 22. Bf2 {[%emt 0:02:56]} Qc6 {[%emt 0:00:31]} 23.
Be1 {[%emt 0:01:05]} Qb6 {[%emt 0:00:09]} 24. Bf2 {[%emt 0:00:43]} Qa6 {
[%emt 0:02:39]} 25. a4 {[%emt 0:03:02]} Qc6 {[%emt 0:01:22]} 26. Be1 {[%emt 0:
00:00]} bxa4 {[%emt 0:00:29]} 27. Bc4 {[%emt 0:02:45]} Qb6 {[%emt 0:00:36]} 28.
Qg5 {[%emt 0:02:48]} Bd5 {[%emt 0:04:51]} 29. Bxd5 {[%emt 0:02:40]} Rxd5 {
[%emt 0:00:06]} 30. Qg4 {[%emt 0:00:04]} Rb5 {[%emt 0:04:13]} 31. Qf3 {[%emt 0:
00:00]} Rc8 {[%emt 0:00:14]} 32. c4 {[%emt 0:04:52]} dxc3+ {[%emt 0:00:49]} 33.
Bf2 {[%emt 0:00:02]} Qc6 {[%emt 0:02:12]} 34. Qxc6 {[%emt 0:01:36]} Rxc6 {
[%emt 0:00:02]} 35. bxc3 {[%emt 0:00:04]} Rxc3 {[%emt 0:00:35]} 36. d4 {
[%emt 0:02:39]} a3 {[%emt 0:01:58]} 0-1

[Event "44th Chess Olympiad Women 2022"]
[Site "Chennai"]
[Date "2022.08.06"]
[Round "8.26"]
[White "Nazarova, Anastasia"]
[Black "Shabanaj, Eglantina"]
[Result "1-0"]
[WhiteElo "2208"]
[BlackElo "1940"]
[Annotator "NA RC"]
[PlyCount "80"]
[EventDate "2022.??.??"]
[TimeControl "60"]

1. e4 {[%emt 0:00:04]} e5 {[%emt 0:00:05]} 2. Nf3 {[%emt 0:00:03]} Nc6 {
[%emt 0:00:05]} 3. Bb5 {[%emt 0:00:23]} a6 {[%emt 0:00:15]} 4. Ba4 {[%emt 0:00:
00]} Nf6 {[%emt 0:00:06]} 5. O-O {[%emt 0:00:29]} b5 {[%emt 0:00:35]} 6. Bb3 {
[%emt 0:00:05]} Nxe4 {[%emt 0:02:13]} 7. d4 {[%emt 0:00:17]} d5 {[%emt 0:00:14]
} 8. dxe5 {[%emt 0:00:28]} Be6 {[%emt 0:00:05]} 9. c3 {[%emt 0:00:21]} Be7 {
[%emt 0:00:53]} 10. Re1 {[%emt 0:07:26]} O-O {[%emt 0:04:20]} 11. Bc2 {[%emt 0:
00:00]} Nc5 {[%emt 0:02:19]} 12. Nd4 {[%emt 0:08:31]} Qd7 {[%emt 0:04:06]} 13.
b4 {[%emt 0:16:55]} Nb7 {[%emt 0:04:46]} 14. Nxe6 {[%emt 0:06:49]} Qxe6 {
[%emt 0:01:54]} 15. f4 {[%emt 0:00:28]} g6 {[%emt 0:01:08]} 16. g4 {[%emt 0:00:
00]} Bh4 {[%emt 0:01:25]} 17. Re3 {[%emt 0:04:29]} f5 {[%emt 0:09:27]} 18. exf6
{[%emt 0:18:11]} Qxf6 {[%emt 0:00:38]} 19. Qxd5+ {[%emt 0:00:11]} Kh8 {[%emt 0:
00:00]} 20. Re6 {[%emt 0:00:28]} Qf7 {[%emt 0:00:33]} 21. Qxc6 {[%emt 0:05:21]}
Nd8 {[%emt 0:00:06]} 22. Qxa8 {[%emt 0:00:10]} Nxe6 {[%emt 0:00:09]} 23. Qe4 {
[%emt 0:02:14]} Ng7 {[%emt 0:01:36]} 24. Be3 {[%emt 0:05:27]} Re8 {[%emt 0:00:
00]} 25. Qf3 {[%emt 0:00:04]} Qe6 {[%emt 0:00:24]} 26. Bd2 {[%emt 0:00:18]} Be1
{[%emt 0:05:44]} 27. a4 {[%emt 0:02:36]} bxa4 {[%emt 0:01:18]} 28. Bxa4 {
[%emt 0:00:39]} Rd8 {[%emt 0:00:43]} 29. Be3 {[%emt 0:01:54]} h5 {[%emt 0:00:
00]} 30. Bd4 {[%emt 0:01:55]} hxg4 {[%emt 0:02:15]} 31. Qd1 {[%emt 0:00:09]}
Kh7 {[%emt 0:01:32]} 32. Bb3 {[%emt 0:01:52]} Qe4 {[%emt 0:01:17]} 33. Nd2 {
[%emt 0:00:34]} Bxd2 {[%emt 0:05:08]} 34. Qxd2 {[%emt 0:00:03]} Nh5 {[%emt 0:
00:00]} 35. Re1 {[%emt 0:01:12]} Qf5 {[%emt 0:02:18]} 36. Re7+ {[%emt 0:00:21]}
Kh6 {[%emt 0:00:33]} 37. Bc2 {[%emt 0:00:42]} Qxf4 {[%emt 0:00:37]} 38. Bg7+ {
[%emt 0:00:22]} Kg5 {[%emt 0:00:46]} 39. Re5+ {[%emt 0:00:03]} Kh4 {[%emt 0:00:
00]} 40. Qxf4 {[%emt 0:00:04]} Rd7 {[%emt 0:00:55]} 1-0